Cogmind - Beta 16 @@@ ROGUE MODE // 2025.12.27 @ 12:29:38 Player: skilledspacepolice Result: Destroyed by E9-NBZ(h) with KE Penetrator Performance ------------- Evolutions (0) 0 Regions Visited (3) 600 Robots Destroyed (7) 35 Value Destroyed (150) 150 Prototype IDs (6) 120 Alien Tech Used (0) 0 Bonus (800) 800 TOTAL SCORE: 1705 Bonus ------- Registered with UFD 300 Met Optimus in HQ 500 Cogmind --------- Core Integrity 0/250 Matter 290/300 Energy 265/265 System Corruption 0% Temperature Cool (0) Movement Hovering (116) Ox1 Location -9/Scraptown Parts ------- > --- POWER (1) -------- Improved Ion Engine > --- PROPULSION (2) --- Hover Unit Improved Hover Unit > --- UTILITY (2) ------ Small Storage Unit Spectral Analyzer > --- WEAPON (2) ------- Autogun Autogun > --- INVENTORY (8) ---- Improved Ion Engine Hover Unit Subdweller Optics Hardened Light Armor Plating CPS Tube (2) CPS Tube (2) Peak State ------------ > --- POWER ------------ Improved Ion Engine > --- PROPULSION ------- Hover Unit Improved Hover Unit > --- UTILITY ---------- Small Storage Unit Spectral Analyzer > --- WEAPON ----------- Autogun Autogun > --- INVENTORY -------- Improved Ion Engine Hover Unit Subdweller Optics Hardened Light Armor Plating CPS Tube CPS Tube [Rating: 20] Favorites ----------- Power Improved Ion Engine Engine Improved Ion Engine Propulsion Aluminum Leg Leg Aluminum Leg Hover Unit Hover Unit Utility Small Storage Unit Storage Small Storage Unit Processor Signal Interpreter Weapon Autogun Energy Gun Medium Laser Energy Cannon Beam Cannon Ballistic Gun Autogun Special Weapon Mining Laser Build | -11 -10 -10 -9 ------- Run | Yrd Mat Sub Scr Slots Evolved . | . . . . Power . | . . . . Propulsion . | . . . . Utility . | . . . . Weapon . | . . . . Parts Attached 21 | 6 8 4 3 Power 4 | 1 1 2 . Engine 4 | 1 1 2 . Core . | . . . . Reactor . | . . . . Propulsion 5 | 2 1 . 2 Treads . | . . . . Leg 3 | 2 1 . . Wheel . | . . . . Hover 2 | . . . 2 Flight . | . . . . Utility 4 | 1 2 . 1 Device . | . . . . Storage 1 | 1 . . . Processor 3 | . 2 . 1 Hackware . | . . . . Protection . | . . . . Artifact . | . . . . Weapon 8 | 2 4 2 . Energy Gun 2 | 2 . . . Energy Cannon 1 | . 1 . . Ballistic Gun 4 | . 2 2 . Ballistic Cannon . | . . . . Launcher . | . . . . Special Weapon 1 | . 1 . . Impact Weapon . | . . . . Slashing Weapon . | . . . . Piercing Weapon . | . . . . Special Melee Weapon . | . . . . Unidentified Prototypes . | . . . . Parts Lost 1 | . . 1 . Power . | . . . . Propulsion 1 | . . 1 . Utility . | . . . . Weapon . | . . . . Highest Loss Streak 1 | . . 1 . To Critical Strikes . | . . . . Average Backups 5 | 1 3 6 5 Power 1 | . 1 1 1 Propulsion . | . . . . Utility 2 | . . 1 2 Weapon 1 | . 2 3 . Tool/Special . | . . . . Unused Backups 10 | . 1 1 8 Power 2 | . 1 . 1 Propulsion 1 | . . . 1 Utility 3 | . . . 3 Weapon 2 | . . 1 1 Tool/Special 2 | . . . 2 Average Slot Usage (%) 89 | . 97 94 87 Engine 14 | . 14 14 14 Leg 15 | . 28 22 11 Hover 3 | . . . 4 Storage 14 | . 14 14 14 Processor 13 | . 12 14 14 Energy Gun 2 | . 15 . . Ballistic Gun 24 | . 8 28 28 Peak Build Rating 20 | 6 10 11 20 Average Rating 9 | 4 7 10 10 On Entrance 6 | . 6 10 10 Avg Prop Armor Cover (%) . | . . . . Naked Turns . | . . . . Heaviest Build 18 | 13 18 18 18 Greatest Support 20 | 20 20 20 13 Greatest Overweight (x) 2 | . . 1 2 Average Overweight (x) . | . . . 1 Largest Inventory Capacity 8 | 8 8 8 8 Average Capacity 7 | 7 8 8 8 Most Carried 8 | 4 5 8 8 Average Carried 5 | 1 3 7 6 Final Capacity 8 | 8 8 8 8 Final Carried 7 | 2 5 7 6 Class Distribution -------------------- 100% | Mutant Dominant Class ---------------- Mutant | -10/Materials Mutant | -10/Subcaves Mutant | -9/Scraptown Resources | -11 -10 -10 -9 ----------- Run | Yrd Mat Sub Scr Matter Collected 557 | 217 116 117 107 Remotely . | . . . . Salvage Created 152 | . 152 . . Parts 14 | . 14 . . Haulers Intercepted . | . . . . Recyclers Shooed . | . . . . Parts Field Recycled . | . . . . Retrieved Matter . | . . . . Parts Self-Destructed 12 | . . 12 . Prevented . | . . . . Parts Restored . | . . . . Kills | -11 -10 -10 -9 ------- Run | Yrd Mat Sub Scr Combat Hostiles Destroyed 5 | . 5 . . Guns 3 | . 3 . . Cannons 2 | . 2 . . Classes Destroyed 4 | . 4 . . Operator 1 | . 1 . . Watcher 1 | . 1 . . Swarmer 3 | . 3 . . Grunt 2 | . 2 . . Best Kill Streak 3 | . 3 . . Combat Bots Only 3 | . 3 . . Max Kills in Single Turn 1 | . 1 . . Gunslinging . | . . . . Exploded . | . . . . Melee . | . . . . Uniques/NPCs Destroyed . | . . . . Combat | -11 -10 -10 -9 -------- Run | Yrd Mat Sub Scr Hostile Shots Fired 57 | . 27 15 15 Missed 14 | . 7 4 3 Hits 43 | . 20 11 12 Projectile 43 | . 20 11 12 AOE 1 | . . 1 . Critical Strikes 1 | . . . 1 Damage Taken 740 | . 250 277 213 Core 252 | . 72 102 78 Absorbed by Shields . | . . . . Regen/Repaired (Parts) 67 | . . . 67 Core Remaining (%) 100 | 100 . . . Volleys Fired 39 | . 25 14 . Largest 2 | . 2 2 . Hottest 110 | . 110 46 . Shots Fired 73 | . 45 28 . Gun 60 | . 32 28 . Cannon 12 | . 12 . . Launcher . | . . . . Special 1 | . 1 . . Kinetic 28 | . . 28 . Thermal 45 | . 45 . . Explosive . | . . . . Electromagnetic . | . . . . Robot Hit Streak 17 | . 8 17 . Robot Miss Streak 7 | . 7 3 . Penetration Max . | . . . . Secondary Targets . | . . . . Shots Hit Robots 44 | . 23 21 . Core Hits 9 | . 8 1 . Critical Kills . | . . . . Critical Parts Destroyed . | . . . . Critical Strikes 1 | . 1 . . Burn 1 | . 1 . . Melee Attacks . | . . . . Impact . | . . . . Slashing . | . . . . Piercing . | . . . . Sneak Attacks . | . . . . Combat Hostiles . | . . . . Follow-up Attacks . | . . . . Damage Inflicted 543 | . 311 232 . Guns 422 | . 190 232 . Cannons 121 | . 121 . . Explosions . | . . . . Melee . | . . . . Ramming . | . . . . Kinetic 232 | . . 232 . Thermal 311 | . 311 . . Explosive . | . . . . Electromagnetic . | . . . . Impact . | . . . . Slashing . | . . . . Piercing . | . . . . Highest Corruption . | . . . . Average Corruption . | . . . . Corruption Purged . | . . . . Corruption Blocked . | . . . . Overload Shots . | . . . . Overflow Damage . | . . . . Projectiles . | . . . . Explosions . | . . . . Melee . | . . . . Knockbacks . | . . . . Impact . | . . . . Kinetic . | . . . . Secondary . | . . . . Self-Inflicted Damage . | . . . . Shots . | . . . . Rammed . | . . . . Targets Rammed . | . . . . Kicked . | . . . . Crushed . | . . . . Highest Temperature 424 | . 424 . . Average Temperature 137 | . 137 . . Received Heat Transfer 132 | . 90 42 . Effects 3 | . 3 . . Shutdowns 2 | . 2 . . Matter Decay 1 | . 1 . . Siege Activations . | . . . . Martial Activations . | . . . . Shielding Activations . | . . . . Robots Disrupted . | . . . . Combat Hostiles . | . . . . Robots Corrupted . | . . . . Combat Hostiles . | . . . . Parts Fried . | . . . . Impact Corruptions . | . . . . Robots Melted . | . . . . Combat Hostiles . | . . . . Parts Melted 3 | . 3 . . Heat Transferred 853 | . 853 . . Parts Sabotaged . | . . . . Parts Stolen . | . . . . Parts Stripped . | . . . . Power Chain Reactions . | . . . . Alert | -11 -10 -10 -9 ------- Run | Yrd Mat Sub Scr Maximum Alert Level . | . . . . Low Security (%) 100 | 100 100 . . Level 1 . | . . . . Level 2 . | . . . . Level 3 . | . . . . Level 4 . | . . . . Level 5 . | . . . . High Security . | . . . . Max Security . | . . . . Peak Influence 65 | . 65 . . Initial . | . . . . Average 16 | . 17 . . Influence Increases 178 | . 178 . . Destroy 0b10 Robot/C 100 | . 100 . . Destroy 0b10 Robot/NC 10 | . 10 . . Destroy Leader 22 | . 22 . . Successful Hack 16 | . 16 . . Disable Machine 30 | . 30 . . Influence Decreases 178 | . 178 . . Time Decay 178 | . 178 . . Squads Dispatched 2 | . 2 . . Investigation . | . . . . Extermination . | . . . . Reinforcement 2 | . 2 . . Assault . | . . . . Garrison . | . . . . Intercept . | . . . . Searches Triggered . | . . . . Construction Impeded . | . . . . Haulers Reinforced . | . . . . Active Scanning Responses . | . . . . Cargo Convoy Interrupts . | . . . . Stealth | -11 -10 -10 -9 --------- Run | Yrd Mat Sub Scr Distress Signals . | . . . . Communications Jammed . | . . . . Distress Signals . | . . . . Times Spotted 19 | . 9 6 4 Peak Tracking Total 4 | . 3 4 4 Tactical Retreats . | . . . . Traps | -11 -10 -10 -9 ------- Run | Yrd Mat Sub Scr Traps Triggered 1 | . 1 . . Indirectly . | . . . . Trap Hack Attempts . | . . . . Triggered . | . . . . Disarmed . | . . . . Reprogrammed . | . . . . Reused . | . . . . Traps Extracted . | . . . . Installed . | . . . . Triggered . | . . . . Machines | -11 -10 -10 -9 ---------- Run | Yrd Mat Sub Scr Machines Disabled 2 | . 2 . . Max in Single Turn 1 | . 1 . . Machines Repaired . | . . . . Machines Dismantled . | . . . . Machines Sabotaged . | . . . . Overloaded Fab Kills . | . . . . Hacking | -11 -10 -10 -9 --------- Run | Yrd Mat Sub Scr Machines Accessed 10 | . 3 . 7 Terminals 2 | . 2 . . Fabricators . | . . . . Repair Stations . | . . . . Recycling Units 1 | . 1 . . Scanalyzers . | . . . . Garrison Access . | . . . . Total Hacks 64 | . 4 . 60 Successful 62 | . 2 . 60 Failed 2 | . 2 . . Catastrophic 1 | . 1 . . Database Lockouts . | . . . . Manual . | . . . . Terminals 3 | . 3 . . Fabricators . | . . . . Repair Stations . | . . . . Recycling Units 1 | . 1 . . Scanalyzers . | . . . . Garrison Access . | . . . . Terminal Hacks 61 | . 1 . 60 Record 60 | . . . 60 Recall Investigation 1 | . 1 . . Fabricator Hacks . | . . . . Repair Station Hacks . | . . . . Recycling Unit Hacks 1 | . 1 . . Report Inventory 1 | . 1 . . Scanalyzer . | . . . . Garrison Access Hacks . | . . . . Unauthorized Hacks . | . . . . Terminals . | . . . . Fabricators . | . . . . Repair Stations . | . . . . Recycling Units . | . . . . Scanalyzers . | . . . . Garrison Access . | . . . . Data Cores Recovered . | . . . . Used . | . . . . Hacking Detections 3 | . 3 . . Full Trace Events . | . . . . Feedback Events . | . . . . Feedback Blocked . | . . . . Robot Schematics Acquired . | . . . . Robots Built . | . . . . Authchips . | . . . . Time . | . . . . Total Robot Build Rating . | . . . . Part Schematics Acquired . | . . . . Parts Built . | . . . . Authchips . | . . . . Time . | . . . . Total Part Build Rating . | . . . . Part Studies Acquired . | . . . . Parts Repaired . | . . . . Time . | . . . . Parts Recycled . | . . . . Recycled Matter . | . . . . Retrieved Matter . | . . . . Retrieved Components . | . . . . Parts Scanalyzed . | . . . . Part Schematics Acquired . | . . . . Parts Damaged . | . . . . Bothacking | -11 -10 -10 -9 ------------ Run | Yrd Mat Sub Scr Used RIF Installer . | . . . . Robots Hacked . | . . . . Non-combat . | . . . . Combat . | . . . . Robot Hacks Applied . | . . . . Relay Couplers Released . | . . . . Fabnet Peak Effective % . | . . . . Robots Rewired . | . . . . Allies Hacked . | . . . . Hacks Repelled . | . . . . Allies | -11 -10 -10 -9 -------- Run | Yrd Mat Sub Scr Total Allies . | . . . . Largest Group . | . . . . Highest-Rated Group . | . . . . Highest-Rated Ally . | . . . . Total Orders . | . . . . Ally Attacks . | . . . . Total Damage . | . . . . Kills . | . . . . Allies Corrupted . | . . . . Allies Melted . | . . . . Intel | -11 -10 -10 -9 ------- Run | Yrd Mat Sub Scr Active Infowar (turns) 61 | . . . 61 Optics 61 | . . . 61 Robot Analysis Total . | . . . . Derelict Logs Recovered 3 | . . 1 2 Drone Launches . | . . . . Drone Recoveries . | . . . . Exploration | -11 -10 -10 -9 ------------- Run | Yrd Mat Sub Scr Turns Passed 3753 | 65 587 243 2858 Spaces Moved 2199 | 47 395 122 1635 Core 7 | 7 . . . Treads . | . . . . Legs 1804 | 40 395 122 1247 Wheels . | . . . . Hover 388 | . . . 388 Flight . | . . . . Fastest Speed 50 | 50 120 120 116 Average Speed 160 | 109 120 142 172 Slowest Speed 190 | 120 120 190 190 Overloaded Moves . | . . . . Propulsion Burnouts . | . . . . Robots Hopped . | . . . . Potential Cave-ins . | . . . . Cave-ins Triggered . | . . . . Exploration Rate (%) 41 | 4 68 9 84 Regions Visited 3 Branch Regions 2 Pre-discovered Areas 3 | . . 1 2 Known Exits Taken 2 | . 1 1 . Unknown Exits Taken 1 | 1 . . . Scrap Searched 6 | . . . 6 Spaces Dug . | . . . . Terrain Destroyed . | . . . . Melee . | . . . . Projectile . | . . . . AOE . | . . . . Terrain Rammed . | . . . . Walls Destroyed . | . . . . Machines Disabled . | . . . . Actions | -11 -10 -10 -9 --------- Run | Yrd Mat Sub Scr Total 2369 | 60 464 170 1675 Wait 63 | . 16 23 24 Move 2196 | 46 394 121 1635 Hop . | . . . . Pick Up 30 | 8 12 4 6 Fast Attach 3 | . . 1 2 Attach 17 | 6 7 2 2 Detach 1 | . 1 . . Swap 3 | . 2 1 . Drop 17 | . 7 4 6 Fire 39 | . 25 14 . Melee . | . . . . Ram . | . . . . Kick . | . . . . Crush . | . . . . Escape Stasis . | . . . . Rewire . | . . . . Trap . | . . . . Miscellaneous . | . . . . Route ------- -11/Scrapyard -10/Materials (discovered 3 exits: *Mat x2 / *Sub) -10/Subcaves -9/Scraptown (discovered 1 exit: *Fac) History --------- Turn | Location | Event 4 | -11/Scrapyard | Discovered new exit (range 16) 66 | -11/Scrapyard | Entered Materials 246 | -10/Materials | Discovered new exit (range 7) 309 | -10/Materials | Build established: Mutant 494 | -10/Materials | Discovered new exit (range 16) 530 | -10/Materials | Discovered new exit (range 6) 536 | -10/Materials | Identified exit to Subcaves 627 | -10/Materials | Identified exit to Materials 653 | -10/Materials | Entered Subcaves 654 | -10/Subcaves | Approached by a straggling Scientist 709 | -10/Subcaves | Learned location of Zion (-7) 791 | -10/Subcaves | Ambushed by swarm of Subdwellers 793 | -10/Subcaves | Ambushed by Subdwellers from Twisted Machinery 793 | -10/Subcaves | Ambushed by Subdwellers from Twisted Machinery 793 | -10/Subcaves | Ambushed by Subdwellers from Twisted Machinery 793 | -10/Subcaves | Ambushed by Subdwellers from Twisted Machinery 806 | -10/Subcaves | Core integrity fell below 50% 891 | -10/Subcaves | Scientist uncovered a shortcut to Scraptown 893 | -10/Subcaves | Identified exit to Scraptown 896 | -10/Subcaves | Entered Scraptown 967 | -9/Scraptown | Learned location of Extension (-4) 1470 | -9/Scraptown | Scanned Subdweller tech in exchange for log data 1474 | -9/Scraptown | Learned location of Testing (-3) 1476 | -9/Scraptown | Learned Research terminal intel 1817 | -9/Scraptown | Discovered new exit (range 5) 1827 | -9/Scraptown | Identified exit to Factory 2020 | -9/Scraptown | Visited CR-KLE's Repair Center 2036 | -9/Scraptown | CR-KLE repaired 1 part 2087 | -9/Scraptown | Visited UFD Registry 2087 | -9/Scraptown | Registered with UFD as "Hellkit" 2180 | -9/Scraptown | Visited Comm Corps 2315 | -9/Scraptown | Visited Fellowship of the Rings 2368 | -9/Scraptown | Visited Cyclists 2400 | -9/Scraptown | Entered Cyclist Reading Room 2628 | -9/Scraptown | Visited Assassins FH 3199 | -9/Scraptown | Visited Observation Area 3283 | -9/Scraptown | Visited DA-N13 Charitable Foundation 3307 | -9/Scraptown | Found DCF Scrap (31 items) 3347 | -9/Scraptown | Visited Science Testing Area 3388 | -9/Scraptown | Delivered Scrap Shield to a Scientist 3530 | -9/Scraptown | Visited Curators Association 3605 | -9/Scraptown | Met Optimus 3605 | -9/Scraptown | Accepted into 0bPrime 3682 | -9/Scraptown | Visited Infowarlord's Domain 3692 | -9/Scraptown | Found Spectral Analyzer 3731 | -9/Scraptown | Civil war broke out across Scraptown 3752 | -9/Scraptown | Core integrity fell below 20% 3754 | -9/Scraptown | Destroyed by E9-NBZ(h) with KE Penetrator Last Messages --------------- of here and do your job, we'll deal with this." Slug penetrates Machine. Machine disabled. Optimus: "No holds barred, if they're hostile, they are an enemy of the people and we must shoot to kill. Collateral damage is to be expected!" Bolt penetrates Machine. Slug penetrates KW-3GL(c). KW-3GL(c) destroyed. Slug penetrates Machine. Penetrated by Slug. Machine disabled. Penetrated by Slug. Penetrated by Bolt. P2-U58(x): "We're going to need a new survey of Scraptown after this." Machine disabled. Penetrated by Slug. Map ----- +----------------------------------------------------+ | ??????????????"????????# ???????????????????????? | | ??????????????"!???????# ???????????????????????? | | ???????????????|???????# ??##???????????????????? | | ???????????????? ??????# ?? =???????????????????? | | ?????? ?????????? ?????# ?? [???????????????????? | | ?????? #?????????# ????# ?? #???????????????????? | | ??#### ##??####### ##### ##r##??????????????????? | | """""" """"""""""" """" "" "#?????########?????? | | |%! h"#????""""""""#?????? | | =!= "#??? " " " "??????? | | "#?? "???????? | | ? "## ! ????????? | | ??? h ?!%= ??????????? | | """"""""""??????"""""""" #?? & ???????????? | | """"""""????????"""""""" "#? "?????????????? | | #### ######????######" "## ???????????????? | | ##????????#"" "#;#????????????????? | | X"#????????#"" x ";#?????????????????? | | "" "" ##????????#" ###########????????? | | "" "" X"#??????###"" "## #????????? | | " " ######### #"" "## #????????? | | "" #????????? | | "" "## #????????? | | " " ######### #" "## #????????? | | "" "" ""#??????###" "###########????????? | | "" "" ##????????#"" @ "#??????????????????? | | X"#????????#"" "####?###??##???????? | | ##????????#" "##"###"###"#???????? | | #### ################"" "## "$" "!" #???????? | | """"""""""""""""""""""" 3"## """ """ ###?????? | | """""""""""""""""""""""" E%!E "#?????? | | h";# ""##?????? | | "#; "!#??????? | | "## ""##?????? | | ## "#?????? | | # " " """ ###?????? | | """"""""=""""""""""" """""" ## "&" "!" #???????? | | ########=########### ###### ##"###"###"#???????? | | ## /]**!!*#??# #?# ####?###??##???????? | | ## !*!!/=#??# #?# #??????????????????? | | "## !![[|[#??# #?# #??????????????????? | | "## %=!!/%=#??# #?# E #??????????????????? | | "##= ]##/*=#??# #?# #??????????????????? | | "## ## =*#??# #?# ############???????? | | "###########??# #?# #???????? | | "#????????????# #?# ##???????? | | "#????????????###########?# #???????? | | "#????????????????????????# #???????? | | "#????????????????????????# #???????? | | ##????????????????????????# ############???????? | +----------------------------------------------------+ Best States ------------- Heat Dissipation 25 Energy Generation 15 Energy Capacity 265 Matter Stores 300 Matter Capacity 300 Sight Range 24 Terrain Scan Density 10 Evasion (%) 55 Targeting Accuracy 5 Item Schematics ----------------- None Robot Schematics ------------------ None Fabricated ------------ Nothing Repaired ---------- Nothing Studied --------- None Alien Tech Used ----------------- None Achievements -------------- Bob, First Of His Name Civilization 2243 Link The Feds Nice Directions, Buddy Spot Them First Challenges ------------ None Game ------ Seed LinearMediumArmor Manual? 0 Play Time 01:04:00 Cumulative 4.8 hours Start 2025.12.27 @ 11:06:25 End 2025.12.27 @ 12:29:38 Sessions 1 Manual Loads 0 Difficulty Rogue Special Mode None Game No. 4 Rogue 4 Adventurer 0 Explorer 0 Win Type - Total 0 Types 0/0/0/0/0/0/0/0/0/0 Lore% 9 Gallery% 6 Achievement% 7 Wizard Run 0 Options --------- Layout 1 ASCII 0 Keyboard 0 Movement Mouse Keybinds 0 Fullscreen 1 Font 24/Smallcaps Map View 50x35 Zoom Use 0% Tactical HUD 0 Map Filters NONE Filters NONE Steam 1 RUN: 23944819-eca2-4664-a737-cfdd734abf7b